Cogmind - Beta 16 @@@ ROGUE MODE // 2025.11.12 @ 13:58:10 Player: WarMechanic Result: Destroyed self with Improved Grenade Launcher Performance ------------- Evolutions (1) 500 Regions Visited (5) 1000 Robots Destroyed (78) 390 Value Destroyed (2077) 2077 Prototype IDs (1) 20 Alien Tech Used (0) 0 Bonus (673) 673 TOTAL SCORE: 4660 Bonus ------- High Alert Combat Kills 13 Follower Combat Kills 60 Met Imprinter 300 Was Imprinted 300 Cogmind --------- Core Integrity 0/400 Matter 17/300 Energy 265/265 System Corruption 0% Temperature Warm (161) Movement Core (1600) Ox31 Location -6/Proximity Caves Parts ------- > --- POWER (1) -------- Reinforced Ion Engine > --- PROPULSION (2) --- (None) > --- UTILITY (4) ------ Huge Storage Unit > --- WEAPON (2) ------- Improved Grenade Launcher > --- INVENTORY (25) --- Reinforced Ion Engine Reinforced Ion Engine Improved Deuterium Engine Armored Treads Improved Medium Treads Seismic Detector Salvage Targeting Computer Salvage Targeting Computer Targeting Computer Improved Targeting Computer ECM Suite Hacking Suite Makeshift System Shield Authchip [Processor] Hacking Drone Bay (1/1) Field Laser Field Laser Plasma Cannon Grenade Launcher Mini Grenade Launcher Remote Datajack CR-A16's Pointy Stick Peak State ------------ > --- POWER ------------ Improved Deuterium Engine > --- PROPULSION ------- Improved Treads Wheel > --- UTILITY ---------- Heat Sink Huge Storage Unit Authchip [Storage] Hacking Drone Bay > --- WEAPON ----------- Field Laser Field Laser > --- INVENTORY -------- Improved Ion Engine Reinforced Ion Engine Reinforced Ion Engine Light Treads Light Treads Armored Treads Heat Sink Seismic Detector Targeting Computer Improved Targeting Computer ECM Suite Hardened Light Armor Plating Hardened Light Armor Plating Hacking Suite Makeshift System Shield Authchip [Processor] EM Shotgun Beam Rifle Field Laser Plasma Cannon Grenade Launcher Mini Grenade Launcher Improved Grenade Launcher Remote Datajack CR-A16's Pointy Stick [Rating: 33] Favorites ----------- Power Reinforced Ion Engine Engine Reinforced Ion Engine Propulsion Improved Treads Treads Improved Treads Wheel Wheel Utility Heat Sink Device Heat Sink Storage Huge Storage Unit Hackware Authchip [Storage] Protection Hardened Light Armor Plating Weapon Field Laser Energy Gun Field Laser Launcher Improved Grenade Launcher Build | -11 -10 -9 -9 -7 -6 ------- Run | Yrd Mat Mat Min Zio Pro Slots Evolved 2 | . . 2 . . . Power . | . . . . . . Propulsion . | . . . . . . Utility 2 | . . 2 . . . Weapon . | . . . . . . Parts Attached 53 | 7 5 26 2 4 9 Power 7 | 1 1 3 . 1 1 Engine 7 | 1 1 3 . 1 1 Core . | . . . . . . Reactor . | . . . . . . Propulsion 11 | 2 1 5 1 . 2 Treads 7 | 1 1 3 . . 2 Leg . | . . . . . . Wheel 4 | 1 . 2 1 . . Hover . | . . . . . . Flight . | . . . . . . Utility 19 | 2 2 9 1 2 3 Device 9 | 1 1 4 . 1 2 Storage 3 | 1 1 1 . . . Processor . | . . . . . . Hackware 1 | . . . . 1 . Protection 6 | . . 4 1 . 1 Artifact . | . . . . . . Weapon 16 | 2 1 9 . 1 3 Energy Gun 14 | 2 1 8 . . 3 Energy Cannon . | . . . . . . Ballistic Gun . | . . . . . . Ballistic Cannon . | . . . . . . Launcher 2 | . . 1 . 1 . Special Weapon . | . . . . . . Impact Weapon . | . . . . . . Slashing Weapon . | . . . . . . Piercing Weapon . | . . . . . . Special Melee Weapon . | . . . . . . Unidentified Prototypes 1 | . . . . 1 . Parts Lost 16 | . 1 6 . . 9 Power 1 | . . 1 . . . Propulsion 5 | . . 2 . . 3 Utility 8 | . 1 3 . . 4 Weapon 2 | . . . . . 2 Highest Loss Streak 5 | . 1 2 . . 5 To Critical Strikes . | . . . . . . Average Backups 24 | 3 19 24 24 24 24 Power 3 | . 5 4 4 3 2 Propulsion 3 | 1 3 4 4 3 2 Utility 8 | . 4 6 7 9 10 Weapon 7 | . 6 7 8 8 7 Tool/Special . | . . . . . . Unused Backups 49 | . 8 13 . 10 18 Power 6 | . 3 1 . 1 1 Propulsion 8 | . . 3 . 2 3 Utility 12 | . . . . 3 9 Weapon 21 | . 5 9 . 3 4 Tool/Special 2 | . . . . 1 1 Average Slot Usage (%) 99 | . 99 99 100 100 97 Engine 11 | . 14 10 11 11 11 Treads 11 | . 14 11 11 11 14 Wheel 10 | . 14 10 11 11 6 Device 16 | . 13 17 22 15 19 Storage 11 | . 14 11 11 11 11 Hackware 4 | . . . . 8 1 Protection 10 | . . 14 11 9 10 Energy Gun 15 | . 28 21 11 11 18 Launcher 7 | . . . 11 11 2 Peak Build Rating 33 | 7 11 22 19 31 33 Average Rating 21 | 5 9 18 18 23 27 On Entrance 14 | . 7 11 19 18 31 Avg Prop Armor Cover (%) 9 | 15 12 8 9 9 11 Naked Turns . | . . . . . . Heaviest Build 109 | 12 94 109 100 105 107 Greatest Support 43 | 20 20 43 10 10 43 Greatest Overweight (x) 10 | . 5 9 9 10 10 Average Overweight (x) 8 | . 4 6 9 9 7 Largest Inventory Capacity 25 | 8 25 25 25 25 25 Average Capacity 24 | 7 24 25 25 25 25 Most Carried 25 | 8 25 25 25 25 25 Average Carried 24 | 3 19 24 24 24 24 Final Capacity 25 | 8 25 25 25 25 25 Final Carried 25 | 8 25 25 25 25 22 Class Distribution -------------------- 67% | Mutant 32% | Scavenger-Mutant Dominant Class ---------------- Mutant | -10/Materials Mutant | -9/Materials Scavenger-Mutant | -9/Mines Mutant | -7/Zion Scavenger-Mutant | -6/Proximity Caves Resources | -11 -10 -9 -9 -7 -6 ----------- Run | Yrd Mat Mat Min Zio Pro Matter Collected 1054 | 270 50 401 122 66 145 Remotely . | . . . . . . Salvage Created 2216 | 112 359 1236 59 . 450 Parts 147 | 9 31 75 12 . 20 Haulers Intercepted 1 | . . 1 . . . Recyclers Shooed 1 | . . 1 . . . Parts Field Recycled . | . . . . . . Retrieved Matter . | . . . . . . Parts Self-Destructed 24 | . . . . 3 21 Prevented 3 | . . . . . 3 Parts Restored . | . . . . . . Kills | -11 -10 -9 -9 -7 -6 ------- Run | Yrd Mat Mat Min Zio Pro Combat Hostiles Destroyed 64 | . 13 29 5 . 17 Guns 47 | . 13 28 2 . 4 AOE 16 | . . . 3 . 13 Classes Destroyed 13 | 2 4 4 . . 3 Worker 2 | . 1 1 . . . Tunneler 3 | 2 . . 1 . . Hauler 1 | . . 1 . . . Recycler 1 | 1 . . . . . Operator 3 | . 1 2 . . . Watcher 4 | . . 4 . . . Swarmer 27 | . 9 9 5 . 4 Saboteur 1 | . . . . . 1 Grunt 20 | . 4 11 . . 5 Brawler 3 | . . 1 . . 2 Duelist 3 | . . . . . 3 Sentry 9 | . . 8 . . 1 Behemoth 1 | . . . . . 1 Best Kill Streak 8 | 2 3 7 5 . 8 Combat Bots Only 8 | . 3 7 5 . 8 Max Kills in Single Turn 2 | 1 2 2 1 . 2 Gunslinging 1 | . 1 . . . . Exploded 2 | . . . 1 . 2 Melee . | . . . . . . Uniques/NPCs Destroyed . | . . . . . . Combat | -11 -10 -9 -9 -7 -6 -------- Run | Yrd Mat Mat Min Zio Pro Hostile Shots Fired 389 | . 56 212 22 . 99 Missed 110 | . 12 67 5 . 26 Hits 279 | . 44 145 17 . 73 Melee 18 | . . 2 . . 16 Projectile 261 | . 44 143 17 . 57 Critical Strikes 16 | . 1 5 . . 10 Damage Taken 4154 | . 422 1652 173 . 1907 Core 507 | . 98 184 15 . 210 Absorbed by Shields . | . . . . . . Regen/Repaired (Parts) 300 | . . 120 . 180 . Core Remaining (%) 80 | 100 60 . . . . Volleys Fired 217 | 4 42 117 10 . 44 Largest 2 | 2 2 2 1 . 2 Hottest 126 | 90 90 126 63 . 126 Shots Fired 402 | 8 82 230 12 1 69 Gun 376 | 8 82 227 8 1 50 Cannon . | . . . . . . Launcher 26 | . . 3 4 . 19 Special . | . . . . . . Kinetic . | . . . . . . Thermal 376 | 8 82 227 8 1 50 Explosive 26 | . . 3 4 . 19 Electromagnetic . | . . . . . . Robot Hit Streak 12 | 6 7 11 2 . 12 Robot Miss Streak 7 | . 7 7 2 1 2 Penetration Max . | . . . . . . Secondary Targets 7 | . 3 3 . . 1 Max Gunslinging Chain 1 | . 1 1 . . 1 Shots Hit Robots 229 | 6 38 132 4 . 49 Core Hits 145 | 4 21 53 7 . 60 Critical Kills . | . . . . . . Critical Parts Destroyed . | . . . . . . Critical Strikes 11 | . 1 9 . . 1 Burn 11 | . 1 9 . . 1 Melee Attacks . | . . . . . . Impact . | . . . . . . Slashing . | . . . . . . Piercing . | . . . . . . Sneak Attacks . | . . . . . . Combat Hostiles . | . . . . . . Follow-up Attacks . | . . . . . . Damage Inflicted 5062 | 73 486 1955 222 . 2326 Guns 3225 | 73 486 1955 70 . 641 Cannons . | . . . . . . Explosions 1837 | . . . 152 . 1685 Melee . | . . . . . . Ramming . | . . . . . . Kinetic . | . . . . . . Thermal 3225 | 73 486 1955 70 . 641 Explosive 1837 | . . . 152 . 1685 Electromagnetic . | . . . . . . Impact . | . . . . . . Slashing . | . . . . . . Piercing . | . . . . . . Highest Corruption 5 | . . 5 5 5 . Average Corruption 5 | . . 5 5 5 . Corruption Purged . | . . . . . . Corruption Blocked . | . . . . . . Effects 72 | . . 44 26 2 . Message Errors 14 | . . 11 3 . . Matter Fused 15 | . . 7 8 . . Heat Flow Errors 12 | . . 10 2 . . Energy Discharges 12 | . . 7 4 1 . Parts Fused 1 | . . 1 . . . Data Loss (minor) 7 | . . 4 3 . . Data Loss (major) 3 | . . . 3 . . Misfires 6 | . . 3 2 1 . Alerts 1 | . . . 1 . . Weapon Failures 1 | . . 1 . . . Overload Shots . | . . . . . . Overflow Damage 22 | . . . 3 . 19 Projectiles . | . . . . . . Explosions 22 | . . . 3 . 19 Melee . | . . . . . . Knockbacks . | . . . . . . Impact . | . . . . . . Kinetic . | . . . . . . Secondary . | . . . . . . Self-Inflicted Damage 319 | . . . 45 . 274 Shots 13 | . . . 2 . 11 Rammed 1 | . . 1 . . . Targets Rammed 1 | . . 1 . . . Kicked . | . . . . . . Crushed . | . . . . . . Highest Temperature 583 | 60 429 477 230 . 583 Average Temperature 111 | 33 149 91 99 . 140 Received Heat Transfer 1293 | . 141 495 9 . 648 Effects 15 | . 2 9 . . 4 Shutdowns 5 | . 1 2 . . 2 Energy Bleed 1 | . 1 . . . . Interference 5 | . . 4 . . 1 Matter Decay 2 | . . 1 . . 1 Short Circuit 2 | . . 2 . . . Siege Activations . | . . . . . . Martial Activations . | . . . . . . Shielding Activations . | . . . . . . Robots Disrupted . | . . . . . . Combat Hostiles . | . . . . . . Robots Corrupted . | . . . . . . Combat Hostiles . | . . . . . . Parts Fried . | . . . . . . Impact Corruptions . | . . . . . . Robots Melted 1 | . . 1 . . . Combat Hostiles 1 | . . 1 . . . Parts Melted 30 | 1 5 22 1 . 1 Heat Transferred 8546 | 198 1375 5382 148 . 1443 Parts Sabotaged . | . . . . . . Parts Stolen . | . . . . . . Parts Stripped . | . . . . . . Power Chain Reactions . | . . . . . . Alert | -11 -10 -9 -9 -7 -6 ------- Run | Yrd Mat Mat Min Zio Pro Maximum Alert Level 2 | . . 2 1 . . Low Security (%) 68 | 100 100 57 67 . . Level 1 27 | . . 34 32 . . Level 2 4 | . . 7 . . . Level 3 . | . . . . . . Level 4 . | . . . . . . Level 5 . | . . . . . . High Security . | . . . . . . Max Security . | . . . . . . Peak Influence 430 | 10 175 430 332 . . Initial 164 | . . 37 164 . . Average 156 | 2 102 188 135 . . Influence Increases 2102 | 15 380 1026 183 . 498 Destroy 0b10 Robot/C 1340 | . 260 580 100 . 400 Destroy 0b10 Robot/NC 70 | 15 10 40 5 . . Destroy Leader 280 | . 50 170 20 . 40 Allied During Kill 28 | . . . . . 28 Successful Hack 37 | . . 37 . . . Disable Machine 15 | . . 15 . . . Destroy Structure 47 | . . 19 28 . . Lose Combat Pursuer 285 | . 60 165 30 . 30 Influence Decreases 1946 | 15 292 692 605 . 342 Entered New Map 309 | . . 51 258 . . Time Decay 1429 | 15 282 581 347 . 204 Lost Part 150 | . 10 60 . . 80 Lost Ally 58 | . . . . . 58 Squads Dispatched 7 | . 1 5 . . 1 Investigation 1 | . . 1 . . . Extermination . | . . . . . . Reinforcement 4 | . 1 3 . . . Assault 2 | . . 1 . . 1 Garrison . | . . . . . . Intercept . | . . . . . . Searches Triggered . | . . . . . . Construction Impeded 1 | . . 1 . . . Haulers Reinforced . | . . . . . . Active Scanning Responses . | . . . . . . Cargo Convoy Interrupts . | . . . . . . Stealth | -11 -10 -9 -9 -7 -6 --------- Run | Yrd Mat Mat Min Zio Pro Distress Signals 6 | . 1 5 . . . Communications Jammed . | . . . . . . Distress Signals . | . . . . . . Times Spotted 108 | . 21 59 7 . 21 Peak Tracking Total 7 | . 4 7 6 . 6 Tactical Retreats 15 | . 2 11 1 . 1 Traps | -11 -10 -9 -9 -7 -6 ------- Run | Yrd Mat Mat Min Zio Pro Traps Triggered . | . . . . . . Indirectly . | . . . . . . Trap Hack Attempts . | . . . . . . Triggered . | . . . . . . Disarmed . | . . . . . . Reprogrammed . | . . . . . . Reused . | . . . . . . Traps Extracted . | . . . . . . Installed . | . . . . . . Triggered . | . . . . . . Machines | -11 -10 -9 -9 -7 -6 ---------- Run | Yrd Mat Mat Min Zio Pro Machines Disabled 2 | . . 1 . . 1 Max in Single Turn 1 | . . 1 . . 1 Machines Repaired . | . . . . . . Machines Dismantled . | . . . . . . Machines Sabotaged . | . . . . . . Overloaded Fab Kills . | . . . . . . Hacking | -11 -10 -9 -9 -7 -6 --------- Run | Yrd Mat Mat Min Zio Pro Machines Accessed 11 | . . 11 . . . Terminals 9 | . . 9 . . . Fabricators . | . . . . . . Repair Stations 1 | . . 1 . . . Recycling Units . | . . . . . . Scanalyzers 1 | . . 1 . . . Garrison Access . | . . . . . . Total Hacks 44 | . . 44 . . . Successful 24 | . . 24 . . . Failed 20 | . . 20 . . . Catastrophic 4 | . . 4 . . . Database Lockouts . | . . . . . . Manual 26 | . . 24 . 2 . Terminals 32 | . . 32 . . . Fabricators . | . . . . . . Repair Stations 5 | . . 5 . . . Recycling Units . | . . . . . . Scanalyzers 7 | . . 7 . . . Garrison Access . | . . . . . . Terminal Hacks 8 | . . 8 . . . Record 2 | . . 2 . . . Part Schematic 3 | . . 3 . . . Robot Analysis 1 | . . 1 . . . Terminal Index 1 | . . 1 . . . Locate Traps 1 | . . 1 . . . Fabricator Hacks . | . . . . . . Repair Station Hacks 3 | . . 3 . . . Scan Component 2 | . . 2 . . . Repair 1 | . . 1 . . . Recycling Unit Hacks . | . . . . . . Scanalyzer 7 | . . 7 . . . Insert Component 3 | . . 3 . . . Analyze 4 | . . 4 . . . Garrison Access Hacks . | . . . . . . Unauthorized Hacks 6 | . . 6 . . . Terminals 6 | . . 6 . . . Botnet 6 | . . 6 . . . Fabricators . | . . . . . . Repair Stations . | . . . . . . Recycling Units . | . . . . . . Scanalyzers . | . . . . . . Garrison Access . | . . . . . . Data Cores Recovered 1 | . . 1 . . . Used . | . . . . . . Hacking Detections 11 | . . 11 . . . Full Trace Events 1 | . . 1 . . . Feedback Events . | . . . . . . Feedback Blocked . | . . . . . . Robot Schematics Acquired 3 | . . . . 3 . Robots Built . | . . . . . . Authchips . | . . . . . . Time . | . . . . . . Total Robot Build Rating . | . . . . . . Part Schematics Acquired 20 | . . 6 . 14 . Parts Built . | . . . . . . Authchips . | . . . . . . Time . | . . . . . . Total Part Build Rating . | . . . . . . Part Studies Acquired . | . . . . . . Parts Repaired 1 | . . 1 . . . Time 32 | . . 32 . . . Parts Recycled . | . . . . . . Recycled Matter . | . . . . . . Retrieved Matter . | . . . . . . Retrieved Components . | . . . . . . Parts Scanalyzed 3 | . . 3 . . . Part Schematics Acquired 3 | . . 3 . . . Parts Damaged . | . . . . . . Bothacking | -11 -10 -9 -9 -7 -6 ------------ Run | Yrd Mat Mat Min Zio Pro Used RIF Installer . | . . . . . . Robots Hacked . | . . . . . . Non-combat . | . . . . . . Combat . | . . . . . . Robot Hacks Applied . | . . . . . . Relay Couplers Released . | . . . . . . Fabnet Peak Effective % . | . . . . . . Robots Rewired . | . . . . . . Allies Hacked . | . . . . . . Hacks Repelled . | . . . . . . Allies | -11 -10 -9 -9 -7 -6 -------- Run | Yrd Mat Mat Min Zio Pro Total Allies 4 | . . . . 4 . Largest Group 4 | . . . . 4 4 Highest-Rated Group 153 | . . . . 153 153 Highest-Rated Ally 41 | . . . . 41 41 Total Orders . | . . . . . . Ally Attacks 55 | . . . . . 55 Total Damage 792 | . . . . . 792 Kills 3 | . . . . . 3 Allies Corrupted . | . . . . . . Allies Melted 1 | . . . . . 1 Intel | -11 -10 -9 -9 -7 -6 ------- Run | Yrd Mat Mat Min Zio Pro Active Infowar (turns) 1160 | 21 649 490 . . . Seismic 1160 | 21 649 490 . . . Robot Analysis Total 1 | . . 1 . . . Derelict Logs Recovered 3 | . . . 1 1 1 Drone Launches . | . . . . . . Drone Recoveries . | . . . . . . Exploration | -11 -10 -9 -9 -7 -6 ------------- Run | Yrd Mat Mat Min Zio Pro Turns Passed 9932 | 88 667 2129 919 5085 1044 Spaces Moved 3981 | 57 242 729 410 2209 334 Core 2 | 2 . . . . . Treads 139 | 1 29 19 . . 90 Legs . | . . . . . . Wheels 3840 | 54 213 710 410 2209 244 Hover . | . . . . . . Flight . | . . . . . . Fastest Speed 50 | 50 100 190 215 215 215 Average Speed 219 | 99 206 195 215 227 256 Slowest Speed 570 | 160 480 560 215 230 570 Overloaded Moves . | . . . . . . Propulsion Burnouts . | . . . . . . Robots Hopped . | . . . . . . Potential Cave-ins . | . . . . . . Cave-ins Triggered . | . . . . . . Exploration Rate (%) 53 | 3 31 75 90 90 33 Regions Visited 5 Branch Regions 3 Pre-discovered Areas 2 | . . . . 2 . Known Exits Taken . | . . . . . . Unknown Exits Taken 5 | 1 1 1 1 1 . Scrap Searched 3 | . . . . 3 . Spaces Dug 23 | . . 5 5 . 13 Terrain Destroyed 155 | . . 18 32 . 105 Melee . | . . . . . . Projectile . | . . . . . . AOE 155 | . . 18 32 . 105 Terrain Rammed . | . . . . . . Walls Destroyed . | . . . . . . Machines Disabled . | . . . . . . Actions | -11 -10 -9 -9 -7 -6 --------- Run | Yrd Mat Mat Min Zio Pro Total 4807 | 78 334 1216 444 2282 453 Wait 390 | . 12 286 4 43 45 Move 3976 | 56 241 728 409 2208 334 Hop . | . . . . . . Pick Up 90 | 11 25 27 9 12 6 Fast Attach 6 | 4 . 2 . . . Attach 15 | 3 1 7 . . 4 Detach 1 | . . 1 . . . Swap 46 | . 4 20 2 6 14 Drop 65 | . 9 27 10 13 6 Fire 217 | 4 42 117 10 . 44 Melee . | . . . . . . Ram . | . . . . . . Kick . | . . . . . . Crush 1 | . . 1 . . . Escape Stasis . | . . . . . . Rewire . | . . . . . . Trap . | . . . . . . Miscellaneous . | . . . . . . Route ------- -11/Scrapyard -10/Materials -9/Materials (discovered 5 exits: [*Mat] / [*Min x2] / [*Sto x2]) -9/Mines (discovered 3 exits: [*Mat x2] / *Zio) -7/Zion -6/Proximity Caves History --------- Turn | Location | Event 16 | -11/Scrapyard | Discovered new exit (range 15) 89 | -11/Scrapyard | Entered Materials 314 | -10/Materials | Build established: Mutant 460 | -10/Materials | Discovered new exit (range 15) 756 | -10/Materials | Entered another Materials area 756 | -9/Materials | Evolved 2 slots: Utility x2 958 | -9/Materials | Discovered new exit (range 5) 1280 | -9/Materials | Destroyed 7 combat bots 1381 | -9/Materials | Discovered new exit (range 10) 1752 | -9/Materials | Discovered new exit (range 16) 1995 | -9/Materials | Discovered new exit (range 6) 2241 | -9/Materials | Repaired Imp. Treads 2492 | -9/Materials | Build established: Scavenger-Mutant 2603 | -9/Materials | Discovered new exit (range 13) 2756 | -9/Materials | First assault squad dispatched 2885 | -9/Materials | Entered Mines 2886 | -9/Mines | Met a Derelict bent on vengeance 2891 | -9/Mines | Discovered new exit (range 15) 3195 | -9/Mines | A Derelict revealed a hidden shortcut to a safe place 3336 | -9/Mines | Discovered new exit (range 8) 3349 | -9/Mines | Joined a pair of Derelicts in attacking an 0b10 outpost 3804 | -9/Mines | Entered Zion 3865 | -7/Zion | System corruption cleaned by Quarantine Array 4614 | -7/Zion | Learned Factory trap positions 5227 | -7/Zion | Build established: Mutant 5489 | -7/Zion | Found CR-A16's Pointy Stick 5962 | -7/Zion | Learned location of Quarantine (-2) 7355 | -7/Zion | Met Imprinter 7420 | -7/Zion | Imprinted 7422 | -7/Zion | Declared Zion's savior 7910 | -7/Zion | Visited the Megawrench Repair Shop 7910 | -7/Zion | Megawrench repaired 6 parts 7979 | -7/Zion | Discovered new exit (range 12) 8104 | -7/Zion | Given the Hacking Drone Bay 8104 | -7/Zion | Found Prototype Device 8105 | -7/Zion | Identified Hacking Drone Bay 8889 | -7/Zion | Entered Proximity Caves 8889 | -6/Proximity Caves | Accompanied by 4 allies 8936 | -6/Proximity Caves | Spotted B-75 Beast 8996 | -6/Proximity Caves | Core integrity fell below 50% 9016 | -6/Proximity Caves | Lost 4 allies 9033 | -6/Proximity Caves | Destroyed B-75 Beast 9296 | -6/Proximity Caves | Build established: Scavenger-Mutant 9348 | -6/Proximity Caves | Learned 4 Factory zone layouts 9767 | -6/Proximity Caves | Attracted the attention of an 0b10 outpost 9833 | -6/Proximity Caves | Destroyed 8 combat bots 9834 | -6/Proximity Caves | Lost 3 parts (2u1w) 9845 | -6/Proximity Caves | Build established: Mutant 9924 | -6/Proximity Caves | Core integrity fell below 20% 9933 | -6/Proximity Caves | Destroyed self with Improved Grenade Launcher Last Messages --------------- 09921_ B-48 Gladiator unfolds itself. 09921_ L-41 Fighter unfolds itself. 09921_ G-50 Soldier unfolds itself. 09921_ E-15 Imp unfolds itself. 09922_ Critical hit (Burn: +37). 09923_ E-15 Imp destroyed. [Achievement: Oh No You Don't!] 09924_ Hrd. Light Armor Plating destroyed. 09926_ Arm. Treads destroyed. 09927_ G-50 Soldier destroyed. 09927_ Hrd. Light Armor Plating destroyed. 09927_ Destroyed Hrd. Light Armor Plating. 09929_ The unstable cave ceiling collapses. 09929_ G-67 Veteran destroyed. 09929_ Beam Rifle destroyed. 09929_ Destroyed Beam Rifle. 09931_ Imp. Treads destroyed. 09931_ Destroyed Imp. Treads. 09933_ B-48 Gladiator destroyed. 09933_ L-41 Fighter destroyed. Map ----- +----------------------------------------------------+ | ??????????????????## ###### #????????????????? | | ???????????????????# ##????# ##????????????????? | | ???????????????????# ##?????# #?????????????????? | | ???????????????????########?# #?????????????????? | | ??????????????????????# ## ##????????????????? | | ???????????????????###?# ##???????????????? | | ???????????????????# ### #???????????????? | | ???????????????????# ### ##??????????????? | | ????????????????????# ### ##?????????????? | | ?????????????????????# ## #?????????????? | | ????????????????????## #?????????????? | | ?????????????????##?# #?????????????? | | ?????????????????# ## # # ## #????????????? | | ?????????????????# """ # ## #???????????? | | ?????????????????# # # ### #???????????? | | ?????????????????#### #??# #???????????? | | ?????????????????# # ## # #??? #???????????? | | ?????????????????# # # # #??? #???????????? | | ?????????????????## # # #??? #???????????? | | ??????????????????# # # #???? #???????????? | | ??????????????????# #???? #???????????? | | ??????????????????### # ##???? #???????????? | | ????????????????????### ##??????#???????????? | | ????????????????????# #???????????????????? | | ????????????????????# ##??????????????????? | | ????????????????????# @ #??????????????????? | | ???????????????????# %% ### ???????? | | ???????????????????# !% ???????? | | ???????????????????## % ???????? | | ????????????????????# ###??????????? | | ????????????????????## ##????????????? | | ????????????????????? #######?????????????? | | ????????????????????# # # ##???????????????????? | | ????????????????????#####?###????????????????????? | | ?????????????????????????????????????????????????? | | ?????????????????????????????????????????????????? | | ?????????????????????????????????????????????????? | | ?????????????????????????????????????????????????? | | ?????????????????????????????????????????????????? | | ?????????????????????????????????????????????????? | | ?????????????????????????????????????????????????? | | ?????????????????????????????????????????????????? | | ?????????????????????????????????????????????????? | | ?????????????????????????????????????????????????? | | ?????????????????????????????????????????????????? | | ?????????????????????????????????????????????????? | | ?????????????????????????????????????????????????? | | ?????????????????????????????????????????????????? | | | | | +----------------------------------------------------+ Best States ------------- Heat Dissipation 65 Energy Generation 16 Energy Capacity 290 Matter Stores 300 Matter Capacity 300 Sight Range 16 Terrain Scan Density 10 Armor Coverage 375 Evasion (%) 40 Recoil Reduction 2 Authchip Count 2 Item Schematics ----------------- EMP Blaster | -9/Materials | Hacked Imp. Treads | -9/Materials | Scanalyzed ECM Suite | -9/Materials | Scanalyzed Hacking Suite | -9/Materials | Scanalyzed Hvy. Hammer | -9/Materials | Hacked Spread Laser | -9/Materials | Hacked Adv. Assault Cannon | -7/Zion | Archive Angular Momentum Engine | -7/Zion | Archive Energy Filter | -7/Zion | Archive Thermal Shield | -7/Zion | Archive Imp. Shield Generator | -7/Zion | Archive Force Field | -7/Zion | Archive Hrd. Heavy Armor Plating | -7/Zion | Archive Imp. Thermal Shield | -7/Zion | Archive Imp. Corruption Screen | -7/Zion | Archive Kinecellerator | -7/Zion | Archive Cloaking Device | -7/Zion | Archive Gravmag System | -7/Zion | Archive Hpw. Shock Rifle | -7/Zion | Archive Nuclear Pulse Thruster | -7/Zion | Archive Robot Schematics ------------------ B-48 Gladiator | -7/Zion | Archive S-27 Virus | -7/Zion | Archive L-31 Rogue | -7/Zion | Archive Fabricated ------------ Nothing Repaired ---------- Imp. Treads | 22% | -9/Materials Studied --------- None Alien Tech Used ----------------- None Achievements -------------- Oh No You Don't! Robot Respite The One Challenges ------------ None Game ------ Seed DeliveryAssaultBooster Manual? 0 Play Time 01:12:51 Cumulative 24.8 hours Start 2025.11.12 @ 02:26:09 End 2025.11.12 @ 13:58:10 Sessions 3 Manual Loads 0 Difficulty Rogue Special Mode None Game No. 31 Rogue 31 Adventurer 0 Explorer 0 Win Type - Total 0 Types 0/0/0/0/0/0/0/0/0/0 Lore% 8 Gallery% 13 Achievement% 12 Wizard Run 0 Options --------- Layout 1 ASCII 0 Keyboard 1 Movement Arrows Keybinds 1 Fullscreen 2 Font 24/Smallcaps Map View 50x35 Zoom Use 0% Tactical HUD 1 Map Filters NONE Filters NONE Steam 1 RUN: 22514a22-637e-43e9-8c5e-3fe73ef3ba05